lending/lending_fUSD_20250819
["ID","MTS","AMOUNT","RATE_DAILY","PERIOD"]
[380259299,1755629388731,-2806.48,0.00024095,30]
[380259300,1755629389287,-429.04,0.00024095,30]
[380259301,1755629389334,-3632.79,0.00024095,30]
[380259302,1755629389377,-3310.66,0.00024095,30]
[380259303,1755629389417,-400.0,0.00024095,30]
[380259304,1755629389456,-411.16,0.00024095,30]
[380259305,1755629389493,-2238.21,0.00024095,30]
[380259306,1755629389530,-400.0,0.00024095,30]
[380259307,1755629389568,-1263.11,0.00024095,30]
[380259308,1755629389607,-1826.5,0.00024095,30]
[380259309,1755629389644,-1860.35,0.00024095,30]
[380259310,1755629389681,-1169.66,0.00024095,30]
[380259311,1755629389719,-4823.93,0.00024095,30]
[380259312,1755629389758,-400.0,0.00024095,30]
[380259313,1755629389799,-400.0,0.00024095,30]
[380259314,1755629389841,-400.0,0.00024095,30]
[380259315,1755629389883,-6274.25,0.00024095,30]
[380259316,1755629389927,-803.9,0.00024095,30]
[380259317,1755629389970,-406.36,0.00024095,30]
[380259318,1755629390013,-4094.36,0.00024095,30]
[380259319,1755629390058,-457.75,0.00024095,30]
[380259320,1755629390107,-2361.69,0.00024095,30]
[380259321,1755629390153,-180.79886181,0.00024095,30]
[380259322,1755629390196,-2112.13,0.00024095,30]
[380259323,1755629390251,-1003.38,0.00024095,30]
[380259324,1755629390293,-400.0,0.00024095,30]
[380259325,1755629390335,-796.02,0.00024095,30]
[380259326,1755629390380,-897.52,0.00024095,30]
[380259327,1755629390420,-2177.12,0.00024095,30]
[380259328,1755629390461,-437.94,0.00024095,30]
[380259329,1755629390510,-400.0,0.00024095,30]
[380259330,1755629390549,-3765.87,0.00024095,30]
[380259331,1755629390589,-1519.99,0.00024095,30]
[380259332,1755629390630,-1383.47,0.00024095,30]
[380259333,1755629390674,-985.17,0.00024095,30]
[380259334,1755629390717,-400.0,0.00024095,30]
[380259335,1755629390760,-400.0,0.00024095,30]
[380259336,1755629390804,-924.55,0.00024095,30]
[380259337,1755629390848,-923.52,0.00024095,30]
[380259338,1755629390891,-1598.61,0.00024095,30]
[380259339,1755629390935,-400.0,0.00024095,30]
[380259340,1755629390981,-2757.16,0.00024095,30]
[380259341,1755629391027,-3035.89,0.00024095,30]
[380259342,1755629391074,-400.0,0.00024095,30]
[380259343,1755629391118,-400.0,0.00024095,30]
[380259344,1755629391161,-572.21,0.00024095,30]
[380259345,1755629391208,-667.94,0.00024095,30]
[380259346,1755629391263,-400.0,0.00024095,30]
[380259347,1755629391316,-610.47,0.00024095,30]
[380259348,1755629391376,-400.0,0.00024095,30]
[380259349,1755629391429,-2555.96,0.00024095,30]
[380259350,1755629391475,-400.0,0.00024095,30]
[380259351,1755629391520,-400.0,0.00024095,30]
[380259352,1755629391566,-3167.42,0.00024095,30]
[380259353,1755629391610,-3316.1,0.00024095,30]
[380259354,1755629391653,-4009.21,0.00024095,30]
[380259355,1755629391694,-2712.35,0.00024095,30]
[380259356,1755629391735,-436.93,0.00024095,30]
[380259357,1755629391778,-400.0,0.00024095,30]
[380259358,1755629391821,-16553.6,0.00024095,30]
[380259359,1755629391863,-2042.46,0.00024095,30]
[380259360,1755629391904,-3616.04,0.00024095,30]
[380259361,1755629391946,-426.8,0.00024095,30]
[380259362,1755629391988,-1114.17,0.00024095,30]
[380259363,1755629392032,-400.0,0.00024095,30]
[380259364,1755629392074,-400.0,0.00024095,30]
[380259365,1755629392117,-400.0,0.00024095,30]
[380259366,1755629392162,-400.0,0.00024095,30]
[380259367,1755629392207,-1107.03,0.00024095,30]
[380259368,1755629392253,-837.96,0.00024095,30]
[380259369,1755629392296,-4211.89,0.00024095,30]
[380259370,1755629392339,-4672.86,0.00024095,30]
[380259371,1755629392383,-2306.37,0.00024095,30]
[380259372,1755629392428,-2999.58,0.00024095,30]
[380259373,1755629392471,-400.0,0.00024095,30]
[380259374,1755629392514,-4024.6,0.00024095,30]
[380259375,1755629392555,-9755.55,0.00024095,30]
[380259376,1755629392595,-400.0,0.00024095,30]
[380259377,1755629392735,-673.87,0.00024095,30]
[380259378,1755629392781,-2406.12,0.00024095,30]
[380259379,1755629392823,-1884.2,0.00024095,30]
[380259380,1755629392864,-400.0,0.00024095,30]
[380259381,1755629392902,-2024.98,0.00024095,30]
[380259382,1755629392940,-400.0,0.00024095,30]
[380259383,1755629392977,-1299.7,0.00024095,30]
[380259384,1755629393016,-2196.77,0.00024095,30]
[380259385,1755629393056,-677.84,0.00024095,30]
[380259386,1755629393095,-404.78,0.00024095,30]
[380259387,1755629393133,-2622.74,0.00024095,30]
[380259388,1755629393174,-2487.77,0.00024095,30]
[380259389,1755629393221,-400.0,0.00024095,30]
[380259390,1755629393277,-1106.6,0.00024095,30]
[380259391,1755629393323,-595.97,0.00024095,30]
[380259392,1755629393371,-676.66,0.00024095,30]
[380259393,1755629393416,-400.0,0.00024095,30]
[380259394,1755629393459,-425.67,0.00024095,30]
[380259395,1755629393502,-472.39,0.00024095,30]
[380259396,1755629393544,-4203.55,0.00024095,30]
[380259397,1755629393589,-400.0,0.00024095,30]
[380259398,1755629393638,-585.0,0.00024095,30]
[380259399,1755629393683,-1971.08,0.00024095,30]
[380259400,1755629393726,-400.0,0.00024095,30]
[380259401,1755629393769,-2820.21,0.00024095,30]
[380259402,1755629393814,-1024.24,0.00024095,30]
[380259403,1755629393858,-1294.68,0.00024095,30]
[380259404,1755629393899,-400.0,0.00024095,30]
[380259405,1755629393940,-3949.14,0.00024095,30]
[380259406,1755629393980,-465.63,0.00024095,30]
[380259407,1755629394020,-16565.532356,0.00024095,30]
[380259408,1755629394058,-2512.69,0.00024095,30]
[380259409,1755629394098,-576.04,0.00024095,30]
[380259410,1755629394140,-221.60394955,0.00024095,30]
[380259411,1755629394182,-629.38,0.00024095,30]
[380259412,1755629394225,-2439.33,0.00024095,30]
[380259413,1755629394271,-2966.76,0.00024095,30]
[380259414,1755629394311,-1223.1,0.00024095,30]
[380259415,1755629394348,-3255.31,0.00024095,30]
[380259416,1755629394388,-3353.91,0.00024095,30]
[380259417,1755629394426,-3454.52,0.00024095,30]
[380259418,1755629394466,-400.0,0.00024095,30]
[380259419,1755629394505,-986.14,0.00024095,30]
[380259420,1755629394542,-2287.36,0.00024095,30]
[380259421,1755629394580,-676.09,0.00024095,30]
[380259422,1755629394621,-2147.13,0.00024095,30]
[380259423,1755629394659,-3237.38,0.00024095,30]
[380259424,1755629394698,-102.74796585,0.00024095,30]
[380259425,1755629406542,-366202.48620228,0.00032879,30]
[380259426,1755629406592,-37739.06,0.00032879,60]
[380259427,1755629406642,-9076.9363107,0.00032879,120]
[380259428,1755629406689,-512.77652,0.00032879,120]
[380259429,1755629406738,-528.0,0.00032879,120]
[380259430,1755629406785,-7632.8908768,0.00032879,30]
[380259431,1755629406832,-7910.8,0.00032879,30]
[380259432,1755629406883,-913860.7971926,0.00032879,30]
[380259433,1755629406934,-250180.0,0.00032879,30]
[380259434,1755629406984,-3000.0,0.00032879,120]
[380259435,1755629407032,-1000.0,0.00032879,30]
[380259436,1755629407079,-1000.0,0.00032879,60]
[380259437,1755629407125,-500.0,0.00032879,120]
[380259438,1755629407171,-631.63738792,0.00032879,120]
[380259439,1755629407219,-1000.0,0.00032879,60]
[380259440,1755629407271,-1000.0,0.00032879,90]
[380259441,1755629407321,-1000.0,0.00032879,120]
[380259442,1755629407371,-507997.65,0.00032879,60]
[380259443,1755629407421,-500.0,0.00032879,120]
[380259444,1755629407471,-600.86,0.00032879,120]
[380259445,1755629407517,-100000.0,0.00032879,30]
[380259446,1755629407566,-100000.0,0.00032879,120]
[380259447,1755629407613,-1000.0,0.00032879,60]
[380259448,1755629407661,-1000.0,0.00032879,30]
[380259449,1755629407708,-611.5,0.00032879,30]
[380259450,1755629407756,-842.5,0.00032879,60]
[380259451,1755629407802,-1000.0,0.00032879,60]
[380259452,1755629407850,-1000.0,0.00032879,30]
[380259453,1755629407897,-1000.0,0.00032879,30]
[380259454,1755629407943,-1000.0,0.00032879,30]
[380259455,1755629407989,-1000.0,0.00032879,30]
[380259456,1755629408036,-1000.0,0.00032879,30]
[380259457,1755629408081,-1000.0,0.00032879,30]
[380259458,1755629408130,-1000.0,0.00032879,30]
[380259459,1755629408178,-368.70287048,0.00032879,120]
[380259460,1755629408228,-698.43960071,0.00032879,120]
[380259461,1755629408278,-1000.0,0.00032879,30]
[380259462,1755629408327,-1000.0,0.00032879,30]
[380259463,1755629408374,-1000.0,0.00032879,30]
[380259464,1755629408421,-1000.0,0.00032879,30]
[380259465,1755629408467,-1000.0,0.00032879,30]
[380259466,1755629408511,-1000.0,0.00032879,30]
[380259467,1755629408555,-1000.0,0.00032879,30]
[380259468,1755629409072,-1000.0,0.00032879,30]
[380259469,1755629409121,-1000.0,0.00032879,30]
[380259470,1755629409168,-1000.0,0.00032879,30]
[380259471,1755629409216,-1000.0,0.00032879,30]
[380259472,1755629409266,-1000.0,0.00032879,30]
[380259473,1755629409316,-866.96360041,0.00032879,30]
[380259474,1755629409365,-1000.0,0.00032879,30]
[380259475,1755629409413,-351.19426827,0.00032879,30]
[380259476,1755629409461,-869.88486293,0.00032879,30]
[380259477,1755629409508,-1000.0,0.00032879,30]
[380259478,1755629409556,-500.0,0.00032879,120]
[380259479,1755629409605,-500.0,0.00032879,120]
[380259480,1755629409654,-500.0,0.00032879,120]
[380259481,1755629409704,-500.0,0.00032879,120]
[380259482,1755629409752,-447.4170473,0.00032879,120]
[380259483,1755629409802,-1000.0,0.00032879,120]
[380259484,1755629409853,-2527.98709,0.00032879,120]
[380259485,1755629409900,-1000.0,0.00032879,60]
[380259486,1755629409949,-500.0,0.00032879,120]
[380259487,1755629409998,-500.0,0.00032879,120]
[380259488,1755629410050,-620.89695421,0.00032879,120]
[380259489,1755629410101,-1000.0,0.00032879,30]
[380259490,1755629410148,-1000.0,0.00032879,30]
[380259491,1755629410196,-1000.0,0.00032879,60]
[380259492,1755629410248,-1000.0,0.00032879,60]
[380259493,1755629410296,-1000.0,0.00032879,30]
[380259494,1755629410345,-504.56,0.00032879,120]
[380259495,1755629410398,-504.56,0.00032879,120]
[380259496,1755629410449,-504.56,0.00032879,120]
[380259497,1755629410497,-504.56,0.00032879,120]
[380259498,1755629410547,-504.56,0.00032879,120]
[380259499,1755629410596,-504.56,0.00032879,120]
[380259500,1755629410647,-504.56,0.00032879,120]
[380259501,1755629410697,-504.56,0.00032879,120]
[380259502,1755629410749,-504.56,0.00032879,120]
[380259503,1755629410799,-504.56,0.00032879,120]
[380259504,1755629410852,-504.56,0.00032879,120]
[380259505,1755629410905,-504.56,0.00032879,120]
[380259506,1755629410954,-504.56,0.00032879,120]
[380259507,1755629411004,-504.56,0.00032879,120]
[380259508,1755629411054,-504.56,0.00032879,120]
[380259509,1755629411107,-504.56,0.00032879,120]
[380259510,1755629411156,-504.56,0.00032879,120]
[380259511,1755629411208,-504.56,0.00032879,120]
[380259512,1755629411259,-504.56,0.00032879,120]
[380259513,1755629411311,-504.56,0.00032879,120]
[380259514,1755629411362,-1000.0,0.00032879,30]
[380259515,1755629411412,-504.56,0.00032879,120]
[380259516,1755629411464,-504.56,0.00032879,120]
[380259517,1755629411515,-504.56,0.00032879,120]
[380259518,1755629411566,-504.79795839,0.00032879,120]
[380259519,1755629411614,-1000.0,0.00032879,30]
[380259520,1755629411662,-1000.0,0.00032879,120]
[380259521,1755629411710,-1000.0,0.00032879,30]
[380259522,1755629411758,-1000.0,0.00032879,60]
[380259523,1755629411806,-1000.0,0.00032879,30]
[380259524,1755629411854,-1000.0,0.00032879,60]
[380259525,1755629411902,-1000.0,0.00032879,60]
[380259527,1755629411953,-1000.0,0.00032879,60]
[380259528,1755629412001,-1084.53,0.00032879,30]
[380259529,1755629412049,-1000.0,0.00032879,30]
[380259530,1755629412098,-888.792032,0.00032879,120]
[380259531,1755629412150,-1112553.0,0.00032879,45]
[380259532,1755629412199,-1285.49314283,0.00032879,60]
[380259533,1755629412251,-1671.07536894,0.00032879,120]
[380259534,1755629412299,-525.29549567,0.00032879,30]
[380259535,1755629412347,-392.59290875,0.00032879,30]
[380259536,1755629412396,-1462.59047018,0.00032879,30]
[380259537,1755629412443,-900.5603195,0.00032879,30]
[380259538,1755629412489,-1000.0,0.00032879,30]
[380259539,1755629412535,-364.49513133,0.00032879,30]
[380259540,1755629412585,-947.49553218,0.00032879,120]
[380259541,1755629412634,-529.75818503,0.00032879,120]
[380259542,1755629412683,-759.94092356,0.00032879,30]
[380259543,1755629412731,-1142.32619158,0.00032879,120]
[380259544,1755629412781,-1165.40307496,0.00032879,30]
[380259545,1755629412829,-753.74593878,0.00032879,30]
[380259546,1755629412971,-596.87411623,0.00032879,120]
[380259547,1755629413021,-265.9628925,0.00032879,120]
[380259548,1755629413070,-708.16509025,0.00032879,120]
[380259549,1755629413119,-438.30215067,0.00032879,30]
[380259550,1755629413168,-459.27155357,0.00032879,120]
[380259551,1755629413220,-1247.72192069,0.00032879,120]
[380259552,1755629413275,-646.52142338,0.00032879,120]
[380259553,1755629413324,-488.57195424,0.00032879,120]
[380259554,1755629413373,-882.10233013,0.00032879,30]
[380259555,1755629413421,-2009.23842079,0.00032879,120]
[380259556,1755629413470,-890.53900273,0.00032879,30]
[380259557,1755629413518,-271.73153525,0.00032879,120]
[380259558,1755629413565,-856.96695885,0.00032879,30]
[380259559,1755629413613,-1757.5701671,0.00032879,90]
[380259560,1755629413661,-1127.27921107,0.00032879,120]
[380259561,1755629413708,-772.23968582,0.00032879,120]
[380259562,1755629413759,-959.23559806,0.00032879,30]
[380259563,1755629413808,-1078.56573937,0.00032879,120]
[380259564,1755629413859,-537.98948539,0.00032879,120]
[380259565,1755629413908,-214.6967925,0.00032879,30]
[380259566,1755629413958,-1865.1371615,0.00032879,60]
[380259567,1755629414007,-990.97590003,0.00032879,30]
[380259568,1755629414055,-515.87957128,0.00032879,120]
[380259569,1755629414106,-184.95854604,0.00032879,120]
[380259570,1755629414155,-1762.5237068,0.00032879,120]
[380259571,1755629414204,-487.49747941,0.00032879,120]
[380259572,1755629414258,-1990.82414067,0.00032879,120]
[380259573,1755629414305,-2000.0,0.00032879,30]
[380259574,1755629414353,-567.33707329,0.00032879,120]
[380259575,1755629414400,-1043.27745626,0.00032879,30]
[380259576,1755629414449,-362.198217,0.00032879,30]
[380259577,1755629414497,-1085.0,0.00032879,30]
[380259578,1755629414545,-1085.0,0.00032879,30]
[380259579,1755629414593,-1085.0,0.00032879,30]
[380259580,1755629414642,-479.55822927,0.00032879,120]
[380259581,1755629414690,-1085.0,0.00032879,30]
[380259582,1755629414738,-1085.0,0.00032879,30]
[380259583,1755629414785,-734.57435545,0.00032879,120]
[380259584,1755629414832,-394.13952036,0.00032879,30]
[380259585,1755629414880,-423.42234424,0.00032879,120]
[380259586,1755629414930,-2066.99261699,0.00032879,120]
[380259587,1755629414977,-906.34478836,0.00032879,30]
[380259588,1755629415026,-443.3342599,0.00032879,120]
[380259589,1755629415074,-1043.10826509,0.00032879,30]
[380259590,1755629415122,-976.24096888,0.00032879,120]
[380259591,1755629415171,-907.89493056,0.00032879,120]
[380259592,1755629415220,-1098.30382966,0.00032879,120]
[380259593,1755629415268,-1385.86589814,0.00032879,120]
[380259594,1755629415320,-1950.08214406,0.00032879,120]
[380259595,1755629415372,-704.5107005,0.00032879,120]
[380259596,1755629415421,-1345.28082361,0.00032879,120]
[380259597,1755629415470,-1483.77851075,0.00032879,120]
[380259598,1755629415519,-534.10539398,0.00032879,30]
[380259599,1755629415568,-997.0,0.00032879,30]
[380259600,1755629415618,-413.98305757,0.00032879,120]
[380259601,1755629415669,-410.88589877,0.00032879,30]
[380259602,1755629415721,-397.59451648,0.00032879,120]
[380259603,1755629415772,-386.10982425,0.00032879,120]
[380259604,1755629415822,-911.14252292,0.00032879,30]
[380259605,1755629415870,-500.0,0.00032879,90]
[380259606,1755629415919,-500.0,0.00032879,90]
[380259607,1755629415967,-500.0,0.00032879,90]
[380259608,1755629416015,-500.0,0.00032879,90]
[380259609,1755629416065,-500.0,0.00032879,90]
[380259610,1755629416115,-500.0,0.00032879,90]
[380259611,1755629416166,-1727.37494853,0.00032879,120]
[380259612,1755629416217,-500.0,0.00032879,90]
[380259613,1755629416268,-500.0,0.00032879,90]
[380259614,1755629416316,-1042.22112016,0.00032879,120]
[380259615,1755629416365,-1259.94478471,0.00032879,120]
[380259616,1755629416413,-500.0,0.00032879,90]
[380259617,1755629416461,-575.91213464,0.00032879,120]
[380259618,1755629416508,-500.0,0.00032879,90]
[380259619,1755629416555,-500.0,0.00032879,90]
[380259620,1755629416601,-500.0,0.00032879,90]
[380259621,1755629416652,-500.0,0.00032879,90]
[380259622,1755629416700,-210.35770187,0.00032879,30]
[380259623,1755629416747,-500.0,0.00032879,90]
[380259624,1755629416795,-515.63915418,0.00032879,120]
[380259625,1755629416842,-500.0,0.00032879,90]
[380259626,1755629416894,-500.0,0.00032879,90]
[380259627,1755629416941,-1337.52808664,0.00032879,120]
[380259628,1755629416988,-500.0,0.00032879,90]
[380259629,1755629417035,-500.0,0.00032879,90]
[380259630,1755629417081,-500.0,0.00032879,90]
[380259631,1755629417129,-500.0,0.00032879,90]
[380259632,1755629417178,-1704.83535552,0.00032879,120]
[380259633,1755629417227,-501.57895661,0.00032879,30]
[380259634,1755629417277,-878.74719254,0.00032879,120]
[380259635,1755629417326,-275.5263651,0.00032879,30]
[380259636,1755629417376,-772.35477416,0.00032879,30]
[380259637,1755629417423,-1293.85865718,0.00032879,30]
[380259638,1755629417472,-1155.34886411,0.00032879,120]
[380259639,1755629417519,-969.36541273,0.00032879,120]
[380259640,1755629417567,-1237.78110998,0.00032879,120]
[380259641,1755629417614,-1820.72997681,0.00032879,30]
[380259642,1755629417662,-210.17611585,0.00032879,31]
[380259643,1755629417709,-1240.10369462,0.00032879,60]
[380259644,1755629417756,-1000.0,0.00032879,90]
[380259645,1755629417804,-791.1917303,0.00032879,120]
[380259646,1755629417850,-1514.65439917,0.00032879,30]
[380259647,1755629417900,-1000.0,0.00032879,90]
[380259648,1755629417948,-1000.0,0.00032879,90]
[380259649,1755629417997,-1000.0,0.00032879,90]
[380259650,1755629418049,-1000.0,0.00032879,90]
[380259651,1755629418098,-1351.51169694,0.00032879,120]
[380259652,1755629418150,-1147.34318522,0.00032879,120]
[380259653,1755629418202,-301.26032584,0.00032879,120]
[380259654,1755629418251,-1000.0,0.00032879,90]
[380259655,1755629418302,-1000.0,0.00032879,90]
[380259656,1755629418351,-936.6197634,0.00032879,120]
[380259657,1755629418402,-1000.0,0.00032879,90]
[380259658,1755629418451,-1000.0,0.00032879,90]
[380259659,1755629418502,-1000.0,0.00032879,90]
[380259660,1755629418551,-1000.0,0.00032879,90]
[380259661,1755629418784,-1020.98308005,0.00032879,120]
[380259662,1755629418836,-1000.0,0.00032879,90]
[380259663,1755629418888,-1000.0,0.00032879,90]
[380259664,1755629418939,-219.79813638,0.00032879,120]
[380259665,1755629418991,-1000.0,0.00032879,90]
[380259666,1755629419043,-1000.0,0.00032879,90]
[380259667,1755629419097,-173.47495121,0.00032879,120]
[380259668,1755629419150,-1000.0,0.00032879,90]
[380259669,1755629419202,-270.57943815,0.00032879,30]
[380259670,1755629419256,-516.0384995,0.00032879,120]
[380259671,1755629419309,-1000.0,0.00032879,90]
[380259672,1755629419365,-529.06957487,0.00032879,120]
[380259673,1755629419414,-1000.0,0.00032879,90]
[380259674,1755629419464,-442.94825909,0.00032879,30]
[380259675,1755629419515,-807.58822802,0.00032879,120]
[380259676,1755629419566,-1000.0,0.00032879,90]
[380259677,1755629419617,-1000.0,0.00032879,90]
[380259678,1755629419682,-1000.0,0.00032879,90]
[380259679,1755629419747,-1000.0,0.00032879,90]
[380259680,1755629419797,-1000.0,0.00032879,90]
[380259681,1755629419848,-1000.0,0.00032879,90]
[380259682,1755629419899,-1000.0,0.00032879,90]
[380259683,1755629419949,-1000.69763992,0.00032879,30]
[380259684,1755629419998,-1260.29788302,0.00032879,30]
[380259685,1755629420048,-503.35032376,0.00032879,120]
[380259686,1755629420097,-996.61836549,0.00032879,120]
[380259687,1755629420147,-346.86547584,0.00032879,120]
[380259688,1755629420196,-203.4288643,0.00032879,30]
[380259689,1755629420249,-480.9285511,0.00032879,60]
[380259690,1755629420300,-977.89396733,0.00032879,120]
[380259691,1755629420348,-2008.69373354,0.00032879,30]
[380259692,1755629420396,-486.1787496,0.00032879,60]
[380259693,1755629420445,-1420.76399108,0.00032879,120]
[380259694,1755629420492,-1207.46113641,0.00032879,30]
[380259695,1755629420540,-263.6616643,0.00032879,120]
[380259696,1755629420589,-303.34077536,0.00032879,120]
[380259697,1755629420636,-2126.92864101,0.00032879,120]
[380259698,1755629420683,-810.51300721,0.00032879,120]
[380259699,1755629420731,-166.90440283,0.00032879,120]
[380259700,1755629420777,-210.52710269,0.00032879,120]
[380259701,1755629420829,-1000.0,0.00032879,120]
[380259702,1755629420880,-825.4214887,0.00032879,120]
[380259703,1755629420929,-3079.13795068,0.00032879,120]
[380259704,1755629420978,-150.0,0.00032879,120]
[380259705,1755629421026,-150.0,0.00032879,120]
[380259706,1755629421082,-150.0,0.00032879,120]
[380259707,1755629421138,-150.0,0.00032879,120]
[380259708,1755629421191,-150.0,0.00032879,120]
[380259709,1755629421241,-300.0,0.00032879,120]
[380259710,1755629421294,-300.0,0.00032879,120]
[380259711,1755629421342,-2505.31317984,0.00032879,56]
[380259712,1755629421390,-1916.62426362,0.00032879,120]
[380259713,1755629421440,-666.77883765,0.00032879,120]
[380259714,1755629421487,-407.53174297,0.00032879,120]
[380259715,1755629421535,-1068.8237895,0.00032879,30]
[380259716,1755629421583,-1250.0,0.00032879,120]
[380259717,1755629421632,-4300.0,0.00032879,30]
[380259718,1755629421679,-1677.6,0.00032879,30]
[380259719,1755629421728,-214.94,0.00032879,30]
[380259720,1755629421776,-3011.88235687,0.00032879,40]
[380259721,1755629421823,-1245.47124524,0.00032879,120]
[380259722,1755629421874,-5000.0,0.00032879,30]
[380259723,1755629421923,-6009.999999,0.00032879,30]
[380259724,1755629421974,-3366.24,0.00032879,120]
[380259725,1755629422026,-3366.24,0.00032879,120]
[380259726,1755629422078,-3366.24,0.00032879,120]
[380259727,1755629422130,-3366.24,0.00032879,120]
[380259728,1755629422185,-3366.24,0.00032879,120]
[380259729,1755629422238,-3366.24,0.00032879,120]
[380259730,1755629422293,-3366.24,0.00032879,120]
[380259731,1755629422344,-3366.24,0.00032879,120]
[380259732,1755629422396,-3366.24,0.00032879,120]
[380259733,1755629422446,-3366.24,0.00032879,120]
[380259734,1755629422497,-3366.24,0.00032879,120]
[380259735,1755629422548,-3366.24,0.00032879,120]
[380259736,1755629422600,-3366.24,0.00032879,120]
[380259737,1755629422652,-3366.24,0.00032879,120]
[380259738,1755629422703,-3366.24,0.00032879,120]
[380259739,1755629422754,-3366.24,0.00032879,120]
[380259740,1755629422806,-3366.24,0.00032879,120]
[380259741,1755629422856,-3366.24,0.00032879,120]
[380259742,1755629422907,-3366.24,0.00032879,120]
[380259743,1755629422959,-3366.24,0.00032879,120]
[380259744,1755629423010,-3366.24,0.00032879,120]
[380259745,1755629423061,-3366.24,0.00032879,120]
[380259746,1755629423116,-3366.24,0.00032879,120]
[380259747,1755629423168,-3366.44996806,0.00032879,120]
[380259748,1755629423217,-1069.09321639,0.00032879,120]
[380259749,1755629423267,-1188.69479943,0.00032879,120]
[380259750,1755629423315,-3832.71853224,0.00032879,120]
[380259751,1755629423377,-877.0,0.00032879,120]
[380259752,1755629423434,-3761.93500003,0.00032879,120]
[380259753,1755629423489,-3416.44413658,0.00032879,120]
[380259754,1755629423541,-4458.54425022,0.00032879,30]
[380259755,1755629423594,-3526.51656451,0.00032879,120]
[380259756,1755629424090,-4642.75270776,0.00032879,30]
[380259757,1755629424155,-3896.03948403,0.00032879,120]
[380259758,1755629424209,-3537.05163989,0.00032879,120]
[380259759,1755629424262,-3388.77265449,0.00032879,30]
[380259760,1755629424311,-3476.42360036,0.00032879,120]
[380259761,1755629424366,-4364.83310227,0.00032879,30]
[380259762,1755629424417,-3766.24559908,0.00032879,30]
[380259763,1755629424465,-3553.68266513,0.00032879,30]
[380259764,1755629424514,-6646.30946,0.00032879,30]
[380259765,1755629424562,-200000.0,0.00032879,30]
[380259766,1755629424614,-108522.0,0.00032879,60]
[380259767,1755629424664,-2055.156425,0.00032879,120]
[380259768,1755629424716,-45277.73,0.00032879,60]
[380259769,1755629424768,-3651.0,0.00032879,30]
[380259770,1755629424820,-828828.49925264,0.00032879,30]
[380260288,1755629521258,-170.0,9.836e-05,7]
[380260289,1755629521268,-158.5,9.845e-05,2]
[380260290,1755629521286,-300.0,9.904e-05,2]
[380260291,1755629521296,-251.52,0.00010068,2]
[380260292,1755629521305,-300.0,0.0001011,2]
[380260293,1755629521314,-1324.03525665,0.00010114,2]
[380260294,1755629521326,-693.1571524,0.00010114,2]
[380260295,1755629521348,-924.86847177,0.00010114,2]
[380260296,1755629521361,-851.62911918,0.00010114,2]
[380260297,1755629521370,-388.63,0.00010132,2]
[380260298,1755629521380,-1000.0,0.0001015,2]
[380260299,1755629521389,-643.4,0.00010181,2]
[380260300,1755629521398,-1087.33604882,0.00010522,2]
[380260301,1755629521420,-753.98585701,0.00010522,2]
[380260302,1755629521575,-1158.67809417,0.00010522,2]
[380260303,1755629521584,-150.0,0.00010527,2]
[380260304,1755629521593,-368.8605782,0.0001078,2]
[380260305,1755629521602,-300.0,0.00010829,2]
[380260306,1755629521611,-250.0,0.00010829,2]
[380260307,1755629521620,-5000.0,0.000109,2]
[380260308,1755629521629,-1008.30901174,0.000109,2]
[380260309,1755629521638,-300.0,0.00010993,2]
[380260310,1755629521647,-200.0,0.00010993,2]
[380260311,1755629521656,-372.01253888,0.00010999,2]
[380260312,1755629521666,-1389.0,0.00011,2]
[380260313,1755629521675,-43348.90363647,0.00011,2]
[380260314,1755629521687,-84210.36879446,0.00011,2]
[380260315,1755629521698,-55303.738336,0.00011,2]
[380260316,1755629521712,-9754.14185786,0.00011,2]